Cogmind - Beta 10.2 @@@ ROGUE MODE // 2020.12.20 @ 00:50:39 Player: sasha Result: Destroyed by S-10 Pest with Light Assault Rifle Performance ------------- Evolutions (0) 0 Regions Visited (1) 200 Robots Destroyed (16) 80 Value Destroyed (140) 140 Prototype IDs (0) 0 Alien Tech Used (0) 0 Bonus (0) 0 TOTAL SCORE: 420 Bonus ------- None Cogmind --------- Core Integrity 0/250 Matter 300/300 Energy 125/125 System Corruption 0% Temperature Cool (0) Movement Core (1200) Ox23 Location -10/Materials Parts ------- > --- POWER (1) -------- Light Ion Engine > --- PROPULSION (2) --- (None) > --- UTILITY (2) ------ High-capacity Storage Unit High-capacity Storage Unit > --- WEAPON (2) ------- Mining Claw Mining Claw > --- INVENTORY (20) --- High-capacity Storage Unit Medium Laser Assault Rifle Assault Rifle Grenade Launcher Peak State ------------ > --- POWER ------------ Light Ion Engine > --- PROPULSION ------- Light Treads Light Treads > --- UTILITY ---------- High-capacity Storage Unit High-capacity Storage Unit > --- WEAPON ----------- Medium Laser Assault Rifle > --- INVENTORY -------- Light Ion Engine Light Treads High-capacity Storage Unit Assault Rifle [Rating: 7] Favorites ----------- Power Light Ion Engine Engine Light Ion Engine Propulsion Light Treads Treads Light Treads Leg Aluminum Leg Utility High-capacity Storage Unit Storage High-capacity Storage Unit Weapon Mining Claw Energy Gun Medium Laser Ballistic Gun Assault Rifle Slashing Weapon Mining Claw Build | -11 -10 ------- Run | Scr Mat Slots Evolved . | . . Power . | . . Propulsion . | . . Utility . | . . Weapon . | . . Parts Attached 14 | 6 8 Power 2 | 1 1 Engine 2 | 1 1 Core . | . . Reactor . | . . Propulsion 5 | 2 3 Treads 4 | 1 3 Leg 1 | 1 . Wheel . | . . Hover . | . . Flight . | . . Utility 3 | 1 2 Device . | . . Storage 3 | 1 2 Processor . | . . Hackware . | . . Protection . | . . Artifact . | . . Weapon 4 | 2 2 Energy Gun 1 | 1 . Energy Cannon . | . . Ballistic Gun 1 | 1 . Ballistic Cannon . | . . Launcher . | . . Special Weapon . | . . Impact Weapon . | . . Slashing Weapon 2 | . 2 Piercing Weapon . | . . Special Melee Weapon . | . . Unidentified Prototypes . | . . Parts Lost 4 | . 4 Power 1 | . 1 Propulsion 3 | . 3 Utility . | . . Weapon . | . . Highest Loss Streak 3 | . 3 Average Slot Usage (%) 90 | . 90 Engine 11 | . 11 Treads 22 | . 22 Leg 1 | . 1 Storage 25 | . 25 Energy Gun 4 | . 4 Ballistic Gun 4 | . 4 Slashing Weapon 18 | . 18 Naked Turns . | . . Heaviest Build 71 | 11 71 Greatest Support 40 | 20 40 Greatest Overweight (x) 23 | . 23 Average Overweight (x) 1 | . 1 Largest Inventory Capacity 20 | 6 20 Average Capacity 17 | 5 18 Most Carried 7 | 4 7 Average Carried 5 | 3 5 Final Capacity 20 | 6 20 Final Carried 5 | 4 5 Class Distribution -------------------- 78% | Hauler-Mutant 21% | Mutant Dominant Class ---------------- Hauler-Mutant | -10/Materials Resources | -11 -10 ----------- Run | Scr Mat Matter Collected 338 | 219 119 Remotely . | . . Salvage Created 388 | . 388 Parts 29 | . 29 Haulers Intercepted . | . . Recyclers Shooed . | . . Parts Field Recycled . | . . Retrieved Matter . | . . Parts Self-Destructed . | . . Prevented . | . . Kills | -11 -10 ------- Run | Scr Mat Combat Hostiles Destroyed 6 | . 6 Melee 6 | . 6 Classes Destroyed 7 | . 7 Worker 3 | . 3 Builder 2 | . 2 Tunneler 3 | . 3 Recycler 1 | . 1 Watcher 1 | . 1 Swarmer 5 | . 5 Grunt 1 | . 1 Best Kill Streak 4 | . 4 Combat Bots Only 2 | . 2 Max Kills in Single Turn 1 | . 1 Gunslinging . | . . Exploded . | . . Melee 1 | . 1 Uniques/NPCs Destroyed . | . . Combat | -11 -10 -------- Run | Scr Mat Damage Taken 914 | . 914 Core 251 | . 251 Absorbed by Shields . | . . Core Remaining (%) 100 | 100 . Volleys Fired 1 | . 1 Largest 2 | . 2 Hottest 70 | . 70 Shots Fired 2 | . 2 Gun 2 | . 2 Cannon . | . . Launcher . | . . Special . | . . Kinetic 1 | . 1 Thermal 1 | . 1 Explosive . | . . Electromagnetic . | . . Robot Hit Streak 1 | . 1 Robot Miss Streak 1 | . 1 Penetration Max . | . . Secondary Targets . | . . Shots Hit Robots 37 | . 37 Core Hits 16 | . 16 Critical Hits 2 | . 2 Critical Kills 2 | . 2 Critical Parts Destroyed . | . . Melee Attacks 59 | . 59 Impact . | . . Slashing 59 | . 59 Piercing . | . . Sneak Attacks 13 | . 13 Combat Hostiles . | . . Follow-up Attacks 5 | . 5 Damage Inflicted 1453 | . 1453 Guns 12 | . 12 Cannons . | . . Explosions . | . . Melee 1441 | . 1441 Ramming . | . . Kinetic . | . . Thermal 12 | . 12 Explosive . | . . Electromagnetic . | . . Impact . | . . Slashing 1441 | . 1441 Piercing . | . . Highest Corruption . | . . Average Corruption . | . . Corruption Purged . | . . Overload Shots . | . . Overflow Damage 332 | . 332 Projectiles . | . . Explosions . | . . Melee 332 | . 332 Knockbacks . | . . Impact . | . . Kinetic . | . . Secondary . | . . Self-Inflicted Damage . | . . Shots . | . . Rammed . | . . Targets Rammed . | . . Kicked . | . . Crushed . | . . Highest Temperature 9 | . 9 Average Temperature 6 | . 6 Received Heat Transfer 42 | . 42 Siege Activations . | . . Robots Corrupted . | . . Combat Hostiles . | . . Parts Fried . | . . Impact Corruptions . | . . Robots Melted . | . . Combat Hostiles . | . . Parts Melted . | . . Heat Transferred 37 | . 37 Parts Sabotaged . | . . Parts Stolen . | . . Parts Stripped . | . . Power Chain Reactions . | . . Missiles Intercepted . | . . Alert | -11 -10 ------- Run | Scr Mat Peak Influence 167 | . 167 Initial . | . . Average 46 | . 51 Maximum Alert Level . | . . Low Security (%) 100 | 100 100 Level 1 . | . . Level 2 . | . . Level 3 . | . . Level 4 . | . . Level 5 . | . . High Security . | . . Max Security . | . . Squads Dispatched 1 | . 1 Investigation . | . . Extermination . | . . Reinforcement 1 | . 1 Assault . | . . Garrison . | . . Intercept . | . . Construction Impeded . | . . Haulers Reinforced . | . . Stealth | -11 -10 --------- Run | Scr Mat Distress Signals 3 | . 3 Communications Jammed . | . . Distress Signals . | . . Times Spotted 20 | . 20 Peak Tracking Total 5 | . 5 Tactical Retreats 6 | . 6 Traps | -11 -10 ------- Run | Scr Mat Traps Triggered . | . . Indirectly . | . . Trap Hack Attempts . | . . Triggered . | . . Disarmed . | . . Reprogrammed . | . . Reused . | . . Traps Extracted . | . . Installed . | . . Triggered . | . . Machines | -11 -10 ---------- Run | Scr Mat Machines Disabled . | . . Max in Single Turn . | . . Machines Sabotaged . | . . Garrisons Compromised . | . . Overloaded Fab Kills . | . . Fab Network Shutdowns . | . . Hacking | -11 -10 --------- Run | Scr Mat Machines Accessed . | . . Terminals . | . . Fabricators . | . . Repair Stations . | . . Recycling Units . | . . Scanalyzers . | . . Garrison Access . | . . Total Hacks . | . . Successful . | . . Failed . | . . Catastrophic . | . . Database Lockouts . | . . Manual . | . . Terminals . | . . Fabricators . | . . Repair Stations . | . . Recycling Units . | . . Scanalyzers . | . . Garrison Access . | . . Terminal Hacks . | . . Fabricator Hacks . | . . Repair Station Hacks . | . . Recycling Unit Hacks . | . . Scanalyzer . | . . Garrison Access Hacks . | . . Unauthorized Hacks . | . . Terminals . | . . Fabricators . | . . Repair Stations . | . . Recycling Units . | . . Scanalyzers . | . . Garrison Access . | . . Data Cores Recovered . | . . Used . | . . Hacking Detections . | . . Full Trace Events . | . . Feedback Events . | . . Feedback Blocked . | . . Robot Schematics Acquired . | . . Robots Built . | . . Matter . | . . Time . | . . Total Robot Build Rating . | . . Part Schematics Acquired . | . . Parts Built . | . . Matter . | . . Time . | . . Total Part Build Rating . | . . Parts Repaired . | . . Time . | . . Parts Recycled . | . . Recycled Matter . | . . Retrieved Matter . | . . Retrieved Components . | . . Parts Scanalyzed . | . . Part Schematics Acquired . | . . Parts Damaged . | . . Bothacking | -11 -10 ------------ Run | Scr Mat Used RIF Installer . | . . Robots Hacked . | . . Non-combat . | . . Combat . | . . Robot Hacks Applied . | . . Relay Couplers Released . | . . Robots Rewired . | . . Allies Hacked . | . . Hacks Repelled . | . . Allies | -11 -10 -------- Run | Scr Mat Total Allies . | . . Largest Group . | . . Highest-Rated Group . | . . Highest-Rated Ally . | . . Total Orders . | . . Ally Attacks . | . . Total Damage . | . . Kills . | . . Allies Corrupted . | . . Allies Melted . | . . Intel | -11 -10 ------- Run | Scr Mat Robot Analysis Total . | . . Derelict Logs Recovered . | . . Drone Launches . | . . Drone Recoveries . | . . Exploration | -11 -10 ------------- Run | Scr Mat Turns Passed 739 | 70 669 Spaces Moved 298 | 45 253 Core 15 | 14 1 Treads 279 | 27 252 Legs 4 | 4 . Wheels . | . . Hover . | . . Flight . | . . Fastest Speed 50 | 50 160 Average Speed 176 | 122 186 Slowest Speed 1200 | 160 1200 Overloaded Moves . | . . Propulsion Burnouts . | . . Robots Hopped . | . . Cave-ins Triggered . | . . Exploration Rate (%) 21 | 5 37 Regions Visited 1 Branch Regions . Pre-discovered Areas . | . . Known Exits Taken . | . . Unknown Exits Taken 1 | 1 . Scrap Searched . | . . Spaces Dug . | . . Terrain Destroyed . | . . Melee . | . . Projectile . | . . AOE . | . . Terrain Rammed . | . . Walls Destroyed . | . . Machines Disabled . | . . Actions | -11 -10 --------- Run | Scr Mat Total 407 | 60 347 Wait 19 | . 19 Move 297 | 44 253 Hop . | . . Pick Up 19 | 10 9 Fast Attach . | . . Attach 11 | 6 5 Detach . | . . Swap 3 | . 3 Drop 6 | . 6 Fire 1 | . 1 Melee 51 | . 51 Ram . | . . Kick . | . . Crush . | . . Escape Stasis . | . . Rewire . | . . Trap . | . . Miscellaneous . | . . Route ------- -11/Scrapyard -10/Materials (discovered 2 exits: [*Mat] / [*Min]) History --------- Turn | Location | Event 12 | -11/Scrapyard | Discovered new exit (range 16) 71 | -11/Scrapyard | Entered Materials 372 | -10/Materials | Discovered new exit (range 8) 468 | -10/Materials | Build established: Hauler-Mutant 473 | -10/Materials | Discovered new exit (range 7) 577 | -10/Materials | Core integrity fell below 50% 613 | -10/Materials | Lost 3 parts (1p2n) 619 | -10/Materials | Core integrity fell below 20% 740 | -10/Materials | Destroyed by S-10 Pest with Light Assault Rifle Last Messages --------------- 00631_ R-06 Scavenger Tractor Beam severed. 00631_ Mining Claw follow-up attack on R-06 Scavenger. 00635_ R-06 Scavenger destroyed. 00635_ K-01 Serf collects debris. 00638_ K-01 Serf Wheel ripped off. 00651_ K-01 Serf collects debris. 00656_ Sneak attack on K-01 Serf. 00656_ Destroyed Wheel. 00669_ R-06 Scavenger collects Welding Torch. 00683_ Sneak attack on U-05 Engineer. 00683_ U-05 Engineer destroyed. 00691_ K-01 Serf collects debris. 00693_ Dropped Wheel. 00695_ K-01 Serf collects debris. 00699_ Acquired 10 matter. 00702_ K-01 Serf collects debris. 00711_ W-16 Scout sends out distress signal. 00713_ K-01 Serf collects debris. 00724_ Lgt. Treads destroyed. 00732_ K-01 Serf destroyed. Map ----- +----------------------------------------------------+ | | | | | | | | | | | | | | | | | ?????????????????????????????????????????????????? | | ?????????????????????????????????????????????????? | | ?????????????????????????????????????????????????? | | ?????????????????????????????????????????????????? | | ?????????????????????????????????????????#####???? | | ????????????????????????????????????????##"""##??? | | ???????????????###?????????????????????##"!!!"##?? | | ???????????????#]] ????????????????????#"" ""#?? | | ???????????????#]] ????????????????????# #?? | | ????????????????== #####???????????????# < #?? | | ?????????????????= #???????????????# #?? | | ?????????????????? < #???????????????? #?? | | ??????????????????? #########????????? #??? | | ???????????????????# ## #######???# #???? | | ???????????????????# ##!! #%[ ##### # | | ???????????????????# ##s =#= !%= + | | ??????###+#???????## ##!% s/%* = == # | | ??????# ####### #@ *%#%=!%%* *%! #???? | | ??????# #sk =%=#[ =##+######???? | | ??????# + ### ### ????????? | | ??????# " !% !!# #?# #?# ????????? | | ??????# "" ## # #?# #?# """???????? | | ??????# "" ### ## #?# #?# """???????? | | ??????# """ "?# ## #?# #?# """ ??????? | | ??????? "" T?# ## #?#%#?# ??????? | | ?????????? """ "?# ## #?#%#?# ?????? | | ?????????? """ #?# #########?# #?# ?? ?????? | | ?????????? """ #?# #????????##+############??? | | ?????????? " #?# #????????# #??? | | ???????????? ??##/##????????# #??? | | ???????????? ! ??? ??????????#! ! """"" #??? | | ??????????? ??? ??????????#! ! """"" #??? | | ???????????? ??? ??????????#/!! """"" #??? | | ???????????? = ??? ???????????# #??? | | ???????????? ???????????????#######+#######??? | | ?????????????? ???????????????????# #??????? | | ????????????????????????????????????# #??????? | | ??????????????????????????????????? / #??????? | | ??????????????????????????????????" # #??????? | | ????????????????????????????????? # #??????? | | ???????????????????????????????? !?## ##??????? | | ??????????????????????????????? ???# #???????? | +----------------------------------------------------+ Best States ------------- Heat Dissipation 25 Energy Generation 10 Energy Capacity 125 Matter Stores 300 Matter Capacity 300 Sight Range 16 Terrain Scan Density 10 Evasion (%) 50 Recoil Reduction 2 Item Schematics ----------------- None Robot Schematics ------------------ None Fabricated ------------ Nothing Alien Tech Used ----------------- None Achievements -------------- None Challenges ------------ None Game ------ Seed IntegrationGuidanceMatrix Manual? 0 Play Time 00:07:38 Cumulative 17.9 hours Start 2020.12.20 @ 00:44:54 End 2020.12.20 @ 00:50:39 Sessions 1 Manual Loads 0 Difficulty Rogue Special Mode None Game No. 25 Rogue 25 Adventurer 0 Explorer 0 Win Type - Total 0 Types 0/0/0/0/0/0/0/0/0 Lore% 9 Gallery% 27 Achievement% 22 Wizard Run 0 Options --------- ASCII 0 Keyboard 0 Movement Mouse Keybinds 0 Fullscreen 2 Font 24/Smallcaps Map View 76x50 Tactical HUD 1 Map Filters NONE Filters NONE Steam 1 RUN: 8b230c72-c07d-4343-8ce2-22c2f3912c08